bitfinex-derivatives/quotes_BTCF0:USTF0_20210703
["timestamp","ask_amount","ask_price","bid_price","bid_amount"]
[1625297744670,0.002,34170.0,34169.0,0.2472426]
[1625297745023,0.061,34170.0,34169.0,0.2472426]
[1625297745124,0.002,34170.0,34169.0,0.2472426]
[1625297745224,0.061,34170.0,34169.0,0.2472426]
[1625297745425,0.002,34170.0,34169.0,0.2472426]
[1625297746026,0.061,34170.0,34169.0,0.2472426]
[1625297746177,0.002,34170.0,34169.0,0.2472426]
[1625297746530,0.061,34170.0,34169.0,0.2472426]
[1625297746678,0.002,34170.0,34169.0,0.2472426]
[1625297746928,0.002,34170.0,34169.0,0.3062426]
[1625297747027,0.002,34170.0,34169.0,0.6070626]
[1625297747228,7.059e-05,34171.0,34169.0,0.6070626]
[1625297747328,7.059e-05,34171.0,34169.0,0.6660626]
[1625297747430,7.059e-05,34171.0,34169.0,0.67536898]
[1625297747629,7.059e-05,34171.0,34169.0,0.61636898]
[1625297747730,7.059e-05,34171.0,34170.0,0.01596875]
[1625297747831,7.059e-05,34171.0,34170.0,0.13396875]
[1625297748484,0.057,34205.0,34170.0,0.13396875]
[1625297748585,0.059,34205.0,34171.0,0.057]
[1625297748685,0.24057544,34200.0,34199.0,0.24057544]
[1625297748784,0.29957544,34200.0,34199.0,0.24057544]
[1625297748885,0.35857544,34200.0,34199.0,0.24057544]
[1625297749486,0.35857544,34200.0,34199.0,0.32807544]
[1625297749685,0.35857544,34200.0,34197.0,0.0888]
[1625297749786,0.5,34199.0,34147.0,1.32723429]
[1625297749889,0.5,34199.0,34168.0,0.1475]
[1625297749988,0.618,34199.0,34168.0,0.2065]
[1625297750191,0.118,34199.0,34169.0,0.01596926]
[1625297750339,0.118,34199.0,34169.0,0.07496926]
[1625297750690,0.118,34199.0,34170.0,0.01596829]
[1625297750795,0.24057544,34185.0,34184.0,0.24057544]
[1625297750889,0.56673544,34185.0,34184.0,0.24057544]
[1625297751041,0.32616,34185.0,34184.0,0.24057544]
[1625297751238,0.26716,34185.0,34184.0,0.24723933]
[1625297751339,0.9388,34205.0,34184.0,0.24723933]
[1625297751441,2.37504349,34227.0,34184.0,0.62190933]
[1625297751540,0.059,34205.0,34184.0,0.63120939]
[1625297751643,0.118,34205.0,34185.0,0.057]
[1625297751738,0.118,34205.0,34185.0,0.13196053]
[1625297751939,0.118,34205.0,34190.0,4.5952]
[1625297752041,0.118,34205.0,34190.0,4.6542]
[1625297752240,0.118,34205.0,34191.0,0.00666216]
[1625297752393,0.118,34205.0,34191.0,0.31606216]
[1625297752790,0.24057544,34202.0,34201.0,0.24057544]
[1625297752890,0.35857544,34202.0,34201.0,0.24057544]
[1625297753095,0.35857544,34202.0,34201.0,0.2472374]
[1625297753294,0.29957544,34202.0,34201.0,0.2472374]
[1625297753393,0.9671,34220.0,34201.0,0.2472374]
[1625297753542,0.9671,34220.0,34201.0,0.5969174]
[1625297753645,1.69384012,34231.0,34202.0,0.057]
[1625297753844,1.69384012,34231.0,34212.0,1.3476]
[1625297753943,1.75284012,34231.0,34212.0,1.3476]
[1625297754046,0.059,34231.0,34213.0,0.057]
[1625297754246,0.118,34231.0,34213.0,0.116]
[1625297754345,0.118,34231.0,34213.0,0.38342]
[1625297754496,0.118,34231.0,34214.0,0.5]
[1625297754598,0.118,34231.0,34214.0,0.559]
[1625297754694,0.059,34231.0,34214.0,0.616]
[1625297754797,0.24057544,34245.0,34230.0,0.96230176]
[1625297754896,0.24057544,34245.0,34230.0,1.26496176]
[1625297754996,0.29957544,34245.0,34230.0,1.26496176]
[1625297755095,0.29957544,34245.0,34230.0,1.20796176]
[1625297755647,0.059,34245.0,34230.0,1.26696176]
[1625297755799,0.059,34245.0,34230.0,1.20796176]
[1625297756049,0.059,34245.0,34230.0,0.96230176]
[1625297756197,0.0219,34245.0,34230.0,0.96230176]
[1625297756297,0.3105942,34248.0,34230.0,0.96230176]
[1625297756396,0.3105942,34248.0,34230.0,1.02130176]
[1625297756600,0.3695942,34248.0,34230.0,1.02130176]
[1625297756801,0.3695942,34248.0,34230.0,0.72172632]
[1625297756802,0.24057544,34231.0,34230.0,0.72172632]
[1625297757002,0.29957544,34231.0,34230.0,0.72172632]
[1625297757201,0.24057544,34233.0,34230.0,0.72172632]
[1625297757302,0.24057544,34233.0,34230.0,0.78072632]
[1625297757402,0.24057544,34237.0,34230.0,0.78072632]
[1625297758155,0.24057544,34237.0,34230.0,0.72172632]
[1625297758305,0.24057544,34237.0,34230.0,0.78072632]
[1625297758759,0.24057544,34237.0,34236.0,0.24057544]
[1625297758858,0.29957544,34237.0,34236.0,0.24057544]
[1625297758967,0.29957544,34237.0,34230.0,0.72172632]
[1625297758968,0.29957544,34237.0,34230.0,0.24057544]
[1625297759063,0.49110544,34237.0,34221.0,0.06325084]
[1625297759209,0.49110544,34237.0,34221.0,0.12225084]
[1625297759357,0.49110544,34237.0,34221.0,0.06325084]
[1625297759462,0.49110544,34237.0,34221.0,0.12225084]
[1625297759560,0.49110544,34237.0,34221.0,0.06325084]
[1625297759658,0.49110544,34237.0,34221.0,0.12225084]
[1625297759760,0.49110544,34237.0,34221.0,0.06325084]
[1625297760214,0.55010544,34237.0,34221.0,0.06325084]
[1625297760812,0.72172632,34222.0,34221.0,0.06325084]
[1625297760911,0.97148632,34222.0,34221.0,0.06325084]
[1625297761614,0.49033544,34222.0,34221.0,0.06325084]
[1625297762413,0.49033544,34222.0,34217.0,0.24057544]
[1625297762514,0.49033544,34222.0,34211.0,0.24057544]
[1625297762615,0.54933544,34222.0,34211.0,0.24057544]
[1625297762862,0.24057544,34222.0,34221.0,0.48115088]
[1625297762964,0.24057544,34226.0,34221.0,0.22555088]
[1625297763064,0.24057544,34226.0,34221.0,0.16235088]
[1625297763363,0.24057544,34226.0,34221.0,0.22135088]
[1625297763965,0.24057544,34226.0,34221.0,0.28035088]
[1625297764619,0.24057544,34226.0,34215.0,0.24057544]
[1625297764716,0.58233544,34226.0,34215.0,0.24057544]
[1625297764818,0.58233544,34226.0,34215.0,0.35857544]
[1625297764819,0.48115088,34216.0,34215.0,0.35857544]
[1625297765018,0.24057544,34223.0,34215.0,0.35857544]
[1625297765768,0.24057544,34223.0,34215.0,0.29957544]
[1625297765869,0.18157544,34223.0,34215.0,0.29957544]
[1625297765968,0.18157544,34223.0,34215.0,0.059]
[1625297766069,0.49426544,34223.0,34211.0,0.29957544]
[1625297766170,0.49426544,34223.0,34211.0,0.24057544]
[1625297766269,0.49426544,34223.0,34189.0,0.9647]
[1625297766370,0.49426544,34223.0,34197.0,0.7608]
[1625297766472,0.49426544,34223.0,34197.0,0.8788]
[1625297766572,0.49426544,34223.0,34198.0,0.00667769]
[1625297766671,0.49426544,34223.0,34198.0,0.12467769]
[1625297766877,0.48978544,34200.0,34199.0,0.35857544]
[1625297767073,0.48978544,34200.0,34199.0,0.36525325]
[1625297767875,0.24057544,34200.0,34199.0,0.36525325]
[1625297769284,0.24057544,34200.0,34199.0,0.12467781]
[1625297769382,0.48891544,34200.0,34199.0,0.12467781]
[1625297769683,0.24057544,34203.0,34199.0,0.12467781]
[1625297770090,0.24057544,34203.0,34200.0,0.00667771]
[1625297770240,0.24057544,34203.0,34200.0,0.12467771]
[1625297770642,0.24057544,34203.0,34201.0,0.00667767]
[1625297770743,0.24057544,34203.0,34201.0,0.12467767]
[1625297770893,0.24057544,34203.0,34202.0,0.24057544]
[1625297770993,0.24057544,34203.0,34202.0,0.35857544]
[1625297771193,0.24057544,34203.0,34202.0,0.36525295]
[1625297772651,0.48115088,34211.0,34202.0,0.64758295]
[1625297772746,0.9278,34241.0,34202.0,0.64758295]
[1625297772846,0.9278,34241.0,34210.0,0.48115088]
[1625297772847,0.24057544,34217.0,34210.0,0.48115088]
[1625297772955,0.24057544,34217.0,34210.0,0.76661088]
[1625297773049,0.29957544,34217.0,34210.0,0.88261088]
[1625297773149,0.29957544,34217.0,34210.0,0.82561088]
[1625297773298,0.29957544,34217.0,34211.0,0.0066775]
[1625297773399,0.29957544,34217.0,34211.0,0.0656775]
[1625297773598,0.24057544,34217.0,34211.0,0.0656775]
[1625297773747,0.24057544,34217.0,34211.0,0.1246775]
[1625297773848,0.24057544,34217.0,34212.0,0.00667702]
[1625297773949,0.24057544,34217.0,34212.0,0.12467702]
[1625297774250,0.24057544,34217.0,34212.0,0.39323702]
[1625297774352,0.24057544,34217.0,34213.0,0.00667692]
[1625297774454,0.24057544,34217.0,34213.0,0.12467692]
[1625297774903,0.24057544,34217.0,34216.0,0.24057544]
[1625297775002,0.24057544,34217.0,34216.0,0.29957544]
[1625297775204,0.24057544,34217.0,34216.0,0.30625261]
[1625297775857,0.24057544,34224.0,34216.0,0.30625261]
[1625297775956,0.24057544,34224.0,34216.0,0.36525261]
[1625297776258,0.24057544,34224.0,34217.0,0.00667643]
[1625297776408,0.24057544,34224.0,34217.0,0.12467643]
[1625297776809,0.24057544,34224.0,34218.0,0.00667596]
[1625297776911,0.24057544,34224.0,34223.0,0.24057544]
[1625297777010,0.24057544,34224.0,34223.0,0.29957544]
[1625297777110,0.24057544,34224.0,34223.0,0.35857544]
[1625297777312,0.24057544,34224.0,34223.0,0.36524448]
[1625297777713,0.24057544,34224.0,34223.0,0.30624448]
[1625297777913,0.24057544,34224.0,34223.0,0.36524448]
[1625297778363,0.24057544,34224.0,34223.0,0.59668448]
[1625297778463,0.24057544,34227.0,34223.0,0.59668448]
[1625297778664,0.24057544,34227.0,34224.0,0.00666866]
[1625297778864,0.24057544,34227.0,34226.0,0.24057544]
[1625297779064,0.24057544,34227.0,34226.0,0.35857544]
[1625297779167,0.24057544,34227.0,34226.0,0.36524407]
[1625297779475,0.24057544,34227.0,34226.0,0.37463493]
[1625297779716,0.24057544,34227.0,34226.0,0.36524407]
[1625297780267,0.24057544,34227.0,34226.0,0.37463547]
[1625297780719,0.24057544,34227.0,34226.0,0.31563547]
[1625297780818,0.24057544,34227.0,34226.0,0.37463547]
[1625297781171,0.24057544,34227.0,34226.0,0.31563547]
[1625297781371,0.24057544,34227.0,34226.0,0.37463547]
[1625297781773,0.24057544,34238.0,34226.0,0.64201547]
[1625297782024,0.9756,34252.0,34226.0,0.64201547]
[1625297782125,0.85561876,34252.0,34227.0,0.04905333]
[1625297782222,0.85561876,34252.0,34227.0,0.60605333]
[1625297782325,0.9376,34276.0,34227.0,0.72405333]
[1625297782422,0.9376,34276.0,34227.0,1.16277333]
[1625297782523,1.0556,34276.0,34227.0,1.16277333]
[1625297782724,1.0556,34276.0,34228.0,0.04904195]
[1625297782872,0.24057544,34251.0,34250.0,0.24057544]
[1625297782973,0.18357544,34251.0,34250.0,0.24057544]
[1625297783173,0.24057544,34251.0,34250.0,0.24724182]
[1625297783375,0.18357544,34251.0,34250.0,0.24724182]
[1625297783473,0.18357544,34251.0,34250.0,0.25662738]
[1625297783674,0.18357544,34251.0,34250.0,0.31562738]
[1625297784023,0.057,34254.0,34250.0,0.25662738]
[1625297784123,0.24057544,34258.0,34250.0,0.25662738]
[1625297784273,0.24057544,34258.0,34251.0,0.01605069]
[1625297784374,0.29957544,34258.0,34251.0,0.01605069]
[1625297784776,0.29957544,34258.0,34251.0,0.00666596]
[1625297784874,0.24057544,34252.0,34251.0,0.00666596]
[1625297787132,0.24057544,34252.0,34251.0,0.06566596]
[1625297788783,0.24057544,34252.0,34251.0,0.00666596]
[1625297788893,0.57021544,34252.0,34251.0,0.00666596]
[1625297789034,0.68821544,34252.0,34251.0,0.00666596]
[1625297789437,0.68821544,34252.0,34244.0,0.00666689]
[1625297789737,0.68821544,34252.0,34251.0,0.00666689]
[1625297789987,0.68821544,34252.0,34245.0,0.0066664]
[1625297790090,0.63121544,34252.0,34245.0,0.0066664]
[1625297790237,0.57221544,34252.0,34241.0,0.00666596]
[1625297790388,0.057,34251.0,34241.0,0.06566596]
[1625297790498,0.057,34251.0,34246.0,0.006666]
[1625297790688,0.175,34251.0,34246.0,0.006666]
[1625297790789,0.175,34251.0,34242.0,0.00666675]
[1625297790888,0.116,34251.0,34242.0,0.06566675]
[1625297790989,0.116,34251.0,34246.0,0.24057544]
[1625297791090,0.116,34251.0,34246.0,0.29957544]
[1625297791189,0.175,34251.0,34246.0,0.24057544]
[1625297791289,0.175,34251.0,34247.0,0.00666622]
[1625297791540,0.116,34251.0,34247.0,0.00666622]
[1625297791641,0.175,34251.0,34247.0,0.00666622]
[1625297791742,0.116,34251.0,34247.0,0.00666622]
[1625297791846,0.175,34251.0,34247.0,0.00666622]
[1625297792244,0.116,34251.0,34247.0,0.00666622]
[1625297792346,0.057,34251.0,34247.0,0.00666622]
[1625297792446,0.116,34251.0,34247.0,0.00666622]
[1625297792695,0.175,34251.0,34247.0,0.00666622]
[1625297792947,0.24057544,34248.0,34247.0,0.00666622]
[1625297793047,0.35657544,34248.0,34247.0,0.00666622]
[1625297793198,0.63510544,34248.0,34247.0,0.00666622]
[1625297793296,0.63510544,34248.0,34240.0,0.24057544]
[1625297793648,0.63510544,34248.0,34241.0,0.00665503]
[1625297793897,0.63510544,34248.0,34241.0,0.06565503]
[1625297794299,0.63510544,34248.0,34242.0,0.00665518]
[1625297794400,0.63510544,34248.0,34242.0,0.06565518]
[1625297794601,0.63510544,34248.0,34242.0,0.00665518]
[1625297794901,0.63510544,34248.0,34241.0,0.00665543]
[1625297795001,0.24057544,34242.0,34241.0,0.00665543]
[1625297795100,0.29757544,34242.0,34240.0,0.24057544]
[1625297795451,0.41557544,34242.0,34241.0,0.0066556]
[1625297795654,0.41557544,34242.0,34203.0,0.43475806]
[1625297795752,0.41557544,34242.0,34206.0,0.9534]
[1625297795901,0.41557544,34242.0,34206.0,1.0124]
[1625297796051,0.41557544,34242.0,34206.0,1.0714]
[1625297796151,0.41557544,34242.0,34207.0,0.04848906]
[1625297796353,0.41557544,34242.0,34207.0,0.16648906]
[1625297796751,0.41557544,34242.0,34208.0,0.01584796]
[1625297796852,0.41557544,34242.0,34213.0,1.3476]
[1625297796953,0.24057544,34224.0,34223.0,0.24057544]
[1625297797204,0.24057544,34224.0,34223.0,0.35857544]
[1625297797302,0.24057544,34224.0,34223.0,0.36522045]
[1625297797503,0.24057544,34224.0,34223.0,0.37468053]
[1625297800409,0.24057544,34224.0,34223.0,0.36522045]
[1625297800760,0.24057544,34224.0,34223.0,0.37467948]
[1625297802567,0.24057544,34224.0,34223.0,0.36522045]
[1625297802766,0.24057544,34224.0,34223.0,0.37467913]
[1625297803723,0.48705544,34224.0,34223.0,0.37467913]
[1625297803820,0.48705544,34224.0,34223.0,0.06564501]
[1625297803919,0.48705544,34224.0,34223.0,0.00664501]
[1625297804222,0.48705544,34224.0,34223.0,0.12464501]
[1625297804471,0.48705544,34224.0,34223.0,0.118]
[1625297804623,0.48705544,34224.0,34223.0,0.00667975]
[1625297804722,0.48705544,34224.0,34223.0,0.06567975]
[1625297804823,0.48705544,34224.0,34223.0,0.12467975]
[1625297804922,0.48705544,34224.0,34223.0,0.059]
[1625297805223,0.48705544,34224.0,34223.0,0.06568054]
[1625297805422,0.54405544,34224.0,34223.0,0.00668054]
[1625297805724,0.54405544,34224.0,34216.0,0.01614176]
[1625297805824,0.54405544,34224.0,34216.0,0.13414176]
[1625297805923,0.48705544,34224.0,34216.0,0.13414176]
[1625297806225,0.48705544,34224.0,34217.0,0.00668063]
[1625297806426,0.48705544,34224.0,34217.0,0.12468063]
[1625297806525,0.24057544,34224.0,34217.0,0.13414193]
[1625297806627,0.24057544,34224.0,34217.0,0.07514193]
[1625297806727,0.24057544,34224.0,34217.0,0.01614193]
[1625297806832,0.29957544,34224.0,34218.0,0.0066809]
[1625297807027,0.48115088,34219.0,34218.0,0.0066809]
[1625297807177,0.77939088,34219.0,34218.0,0.0066809]
[1625297807381,0.77939088,34219.0,34214.0,0.0066816]
[1625297807478,0.057,34218.0,34214.0,0.0066816]
[1625297807579,0.057,34218.0,34207.0,0.01614581]
[1625297807778,0.057,34218.0,34207.0,0.13414581]
[1625297807879,0.057,34218.0,34215.0,0.00668163]
[1625297808181,0.116,34218.0,34208.0,0.01614761]
[1625297808285,0.116,34218.0,34208.0,0.13414761]
[1625297808381,0.116,34218.0,34208.0,0.07514761]
[1625297808531,0.116,34218.0,34208.0,0.059]
[1625297808630,0.116,34218.0,34206.0,0.24057544]
[1625297808731,0.057,34216.0,34206.0,0.24057544]
[1625297808830,0.057,34216.0,34203.0,0.24057544]
[1625297808931,0.116,34216.0,34207.0,0.00665468]
[1625297809081,0.77872632,34208.0,34207.0,0.00665468]
[1625297809181,0.98269632,34208.0,34204.0,0.00665471]
[1625297810184,1.04169632,34208.0,34204.0,0.00665471]
[1625297810334,1.04169632,34208.0,34200.0,0.00665578]
[1625297810536,1.04169632,34208.0,34194.0,0.24057544]
[1625297810636,0.5,34207.0,34194.0,0.059]
[1625297810736,0.057,34206.0,34194.0,0.059]
[1625297810838,0.116,34206.0,34195.0,0.00664471]
[1625297810937,0.5,34205.0,34195.0,0.06564471]
[1625297811036,0.72172632,34196.0,34195.0,0.06564471]
[1625297811186,1.07416632,34196.0,34195.0,0.06564471]
[1625297811336,1.13316632,34196.0,34184.0,0.059]
[1625297811436,0.5,34195.0,34183.0,0.07453929]
[1625297811536,0.057,34194.0,34177.0,0.52242461]
[1625297811640,0.116,34194.0,34177.0,0.52242461]
[1625297811801,0.057,34192.0,34185.0,0.00663518]
[1625297811986,0.5,34191.0,34178.0,0.00663575]
[1625297812137,0.057,34190.0,34178.0,0.00663575]
[1625297812236,0.175,34190.0,34178.0,0.00663575]
[1625297812388,0.057,34188.0,34178.0,0.00663575]
[1625297812488,0.057,34188.0,34175.0,0.00663568]
[1625297812588,0.675,34188.0,34175.0,0.00663568]
[1625297812692,0.675,34188.0,34175.0,0.06563568]
[1625297812792,0.675,34188.0,34175.0,0.059]
[1625297812892,0.175,34188.0,34175.0,0.059]
[1625297812991,0.116,34188.0,34176.0,0.00663598]
[1625297813094,0.24057544,34177.0,34176.0,0.00663598]
[1625297813191,0.24057544,34177.0,34176.0,0.06563598]
[1625297813542,0.29757544,34177.0,34176.0,0.06563598]
[1625297813642,0.24057544,34177.0,34176.0,0.06563598]
[1625297814596,0.24057544,34196.0,34176.0,0.12463598]
[1625297814695,0.24057544,34196.0,34176.0,0.34238598]
[1625297814955,0.24057544,34196.0,34184.0,1.57126]
[1625297815052,0.24057544,34196.0,34195.0,0.24057544]
[1625297815152,0.24057544,34196.0,34195.0,0.52715544]
[1625297815353,0.24057544,34196.0,34195.0,0.58615544]
[1625297816053,0.24057544,34196.0,34195.0,0.52715544]
[1625297816203,0.24057544,34196.0,34195.0,0.28658]
[1625297816303,0.24057544,34196.0,34189.0,0.24057544]
[1625297816406,0.24057544,34196.0,34189.0,0.35857544]
[1625297817054,0.24057544,34196.0,34194.0,0.24057544]
[1625297817055,0.29757544,34196.0,34194.0,0.24057544]
[1625297817156,0.29757544,34196.0,34194.0,0.29957544]
[1625297817507,0.29757544,34196.0,34194.0,0.059]
[1625297817605,0.35657544,34196.0,34194.0,0.059]
[1625297818107,0.35657544,34196.0,34189.0,0.24057544]
[1625297818759,0.35657544,34196.0,34189.0,0.29957544]
[1625297818963,0.35657544,34196.0,34189.0,0.24057544]
[1625297819064,0.24057544,34190.0,34189.0,0.29957544]
[1625297819163,0.29757544,34190.0,34189.0,0.29957544]
[1625297819312,0.24057544,34190.0,34189.0,0.29957544]
[1625297820268,0.24057544,34190.0,34189.0,0.24057544]
[1625297820616,0.29757544,34190.0,34189.0,0.24057544]
[1625297820918,0.35657544,34190.0,34189.0,0.24057544]
[1625297821018,0.29957544,34190.0,34189.0,0.24057544]
[1625297821167,0.24057544,34190.0,34189.0,0.29957544]
[1625297821268,0.24057544,34190.0,34189.0,0.35857544]
[1625297821468,0.24057544,34190.0,34189.0,0.3651798]
[1625297821723,0.24057544,34190.0,34189.0,0.3061798]
[1625297823022,0.24057544,34196.0,34189.0,0.3651798]
[1625297823172,0.24057544,34196.0,34195.0,0.24057544]
[1625297823274,0.24057544,34196.0,34195.0,0.29957544]
[1625297823371,0.24057544,34201.0,34195.0,0.35857544]
[1625297823921,0.24057544,34201.0,34196.0,0.00660252]
[1625297824021,0.24057544,34201.0,34196.0,0.43995252]
[1625297824421,0.24057544,34201.0,34197.0,0.00660206]
[1625297824571,0.24057544,34201.0,34197.0,0.12460206]
[1625297824921,0.24057544,34201.0,34198.0,0.00660186]
[1625297825022,0.24057544,34201.0,34198.0,0.12460186]
[1625297825125,0.24057544,34201.0,34200.0,0.24057544]
[1625297825223,0.24057544,34201.0,34200.0,0.35857544]
[1625297825470,0.24057544,34201.0,34200.0,0.36517693]
[1625297826022,0.24057544,34206.0,34200.0,0.36517693]
[1625297826324,0.18157544,34206.0,34200.0,0.30617693]
[1625297826422,0.18157544,34206.0,34201.0,0.006601]
[1625297826624,0.18157544,34206.0,34201.0,0.124601]
[1625297826973,0.18157544,34206.0,34202.0,0.00660093]
[1625297827073,0.18157544,34206.0,34202.0,0.12460093]
[1625297827174,0.18157544,34206.0,34205.0,0.24057544]
[1625297827274,0.18157544,34206.0,34205.0,0.35857544]
[1625297827474,0.18157544,34206.0,34205.0,0.36517633]
[1625297828428,0.18157544,34206.0,34205.0,0.30617633]
[1625297828678,0.18157544,34206.0,34205.0,0.24717633]
[1625297828828,0.23857544,34206.0,34205.0,0.24717633]
[1625297829128,0.18157544,34206.0,34205.0,0.24717633]
[1625297829378,0.23857544,34206.0,34205.0,0.24717633]
[1625297829779,0.18157544,34206.0,34205.0,0.24717633]
[1625297830179,0.18157544,34206.0,34205.0,0.24057544]
[1625297830478,0.18157544,34206.0,34205.0,0.2471774]
[1625297830731,0.23857544,34206.0,34205.0,0.2471774]
[1625297830830,0.23857544,34206.0,34205.0,0.3061774]
[1625297831031,0.23857544,34206.0,34205.0,0.2471774]
[1625297831131,0.18157544,34206.0,34205.0,0.2471774]
[1625297831534,0.18157544,34206.0,34205.0,0.3061774]
[1625297831733,0.18157544,34206.0,34205.0,0.2471774]
[1625297832390,0.18157544,34206.0,34205.0,0.3061774]
[1625297832539,0.18157544,34206.0,34205.0,0.3651774]
[1625297832787,0.18157544,34206.0,34205.0,0.3061774]
[1625297832890,0.18157544,34206.0,34205.0,0.2471774]
[1625297832989,0.41144544,34206.0,34205.0,0.2471774]
[1625297833992,0.41144544,34206.0,34205.0,0.3061774]
[1625297834092,0.41144544,34206.0,34205.0,0.2471774]
[1625297834542,0.41144544,34206.0,34205.0,0.3061774]
[1625297835497,0.41144544,34206.0,34205.0,0.2471774]
[1625297835696,0.41144544,34206.0,34205.0,0.3061774]
[1625297835796,0.41144544,34206.0,34205.0,0.2471774]
[1625297836299,0.41144544,34206.0,34205.0,0.3061774]
[1625297836749,0.41144544,34206.0,34205.0,0.2471774]
[1625297836849,0.41144544,34206.0,34205.0,0.3061774]
[1625297837049,0.41144544,34206.0,34205.0,0.2471774]
[1625297837149,0.41144544,34206.0,34205.0,0.3061774]
[1625297837605,0.41144544,34206.0,34205.0,0.2471774]
[1625297837852,0.46844544,34206.0,34205.0,0.2471774]
[1625297838354,0.46844544,34206.0,34205.0,0.3061774]
[1625297838503,0.46844544,34206.0,34205.0,0.2471774]
[1625297838654,0.41144544,34206.0,34205.0,0.2471774]
[1625297838755,0.41144544,34206.0,34205.0,0.3061774]
[1625297839255,0.46844544,34206.0,34205.0,0.3061774]
[1625297840055,0.41144544,34206.0,34205.0,0.3061774]
[1625297840155,0.52744544,34206.0,34190.0,0.2929]
[1625297840270,0.58644544,34206.0,34190.0,0.3519]
[1625297840456,0.58644544,34206.0,34190.0,0.059]
[1625297840607,0.58644544,34206.0,34191.0,0.01526232]
[1625297840858,0.58644544,34206.0,34191.0,0.00658246]
[1625297841057,0.58644544,34206.0,34192.0,0.00658266]
[1625297841158,0.72172632,34193.0,34192.0,0.00658266]
[1625297841257,0.92180632,34193.0,34192.0,0.00658266]
[1625297841408,0.92180632,34193.0,34183.0,0.07426332]
[1625297841557,0.92180632,34193.0,34183.0,0.13326332]
[1625297841657,0.97880632,34193.0,34192.0,0.00658303]
[1625297841857,0.97880632,34193.0,34184.0,0.01526451]
[1625297841957,0.97880632,34193.0,34184.0,0.13326451]
[1625297842109,0.97880632,34193.0,34184.0,0.118]
[1625297842308,0.97880632,34193.0,34184.0,0.059]
[1625297842408,1.03780632,34193.0,34185.0,0.01526442]
[1625297842510,1.09680632,34193.0,34185.0,0.01526442]
[1625297843111,1.09680632,34193.0,34181.0,0.01527016]
[1625297843212,1.02165632,34182.0,34181.0,0.01527016]
[1625297843410,1.08065632,34182.0,34172.0,0.07497606]
[1625297843559,1.08065632,34182.0,34172.0,0.13397606]
[1625297843664,1.08065632,34182.0,34173.0,0.01526885]
[1625297843759,1.13765632,34182.0,34173.0,0.01526885]
[1625297843859,1.13765632,34182.0,34173.0,0.13326885]
[1625297844060,1.07865632,34182.0,34173.0,0.07426885]
[1625297844162,1.07865632,34182.0,34174.0,0.01526907]
[1625297844260,1.02165632,34182.0,34174.0,0.13326907]
[1625297844362,0.057,34181.0,34174.0,0.07426907]
[1625297844511,0.057,34181.0,34174.0,0.13326907]
[1625297844610,1.02165632,34182.0,34174.0,0.13326907]
[1625297844713,1.02165632,34182.0,34175.0,0.0152714]
[1625297844862,1.02165632,34182.0,34175.0,0.1332714]
[1625297845012,1.02165632,34182.0,34175.0,0.0742714]
[1625297845162,0.48115088,34176.0,34175.0,0.0742714]
[1625297845262,0.48115088,34176.0,34175.0,0.059]
[1625297845362,0.48115088,34176.0,34175.0,0.118]
[1625297845463,0.48115088,34176.0,34175.0,0.12458491]
[1625297845562,0.48115088,34176.0,34175.0,0.13327036]
[1625297846062,0.48115088,34176.0,34175.0,0.16493416]
[1625297846263,0.48115088,34176.0,34175.0,0.61391362]
[1625297846814,0.48115088,34176.0,34175.0,0.23980665]
[1625297847216,0.48115088,34176.0,34175.0,0.48038209]
[1625297847317,0.48115088,34176.0,34175.0,0.92983657]
[1625297847416,0.48115088,34176.0,34175.0,0.89817277]
[1625297847768,0.48115088,34176.0,34175.0,0.3738458]
[1625297848118,0.48115088,34176.0,34175.0,0.3148458]
[1625297848320,0.48115088,34176.0,34175.0,0.84322787]
[1625297848418,0.48115088,34176.0,34175.0,0.78422787]
[1625297848877,0.48115088,34176.0,34175.0,0.2558458]
[1625297849320,0.48115088,34176.0,34175.0,0.3148458]
[1625297849770,0.48115088,34176.0,34175.0,0.3738458]
[1625297850124,0.48115088,34176.0,34175.0,0.3148458]
[1625297850373,0.48115088,34176.0,34175.0,0.3738458]
[1625297850923,0.48115088,34176.0,34175.0,0.3148458]
[1625297851622,0.48115088,34176.0,34175.0,0.3738458]
[1625297851724,0.48115088,34176.0,34175.0,0.3148458]
[1625297851872,0.48115088,34176.0,34175.0,0.3738458]
[1625297852777,0.48115088,34176.0,34175.0,0.45003297]
[1625297853129,0.48115088,34176.0,34175.0,0.90706306]
[1625297853529,0.48115088,34176.0,34175.0,0.83095287]
[1625297853830,0.48115088,34176.0,34175.0,1.4412314]
[1625297854983,0.48115088,34176.0,34175.0,1.13636932]
[1625297855481,0.48115088,34176.0,34175.0,1.07736932]
[1625297855731,0.48115088,34176.0,34175.0,1.38325019]
[1625297855933,0.48115088,34176.0,34175.0,1.44225019]
[1625297857134,0.48115088,34176.0,34175.0,1.38325019]
[1625297857335,0.48115088,34176.0,34175.0,1.44225019]
[1625297857485,0.48115088,34176.0,34175.0,0.83095287]
[1625297858037,0.48115088,34176.0,34175.0,1.13661212]
[1625297858337,0.48115088,34176.0,34175.0,1.13002721]
[1625297858489,0.48115088,34176.0,34175.0,1.1366033]
[1625297858589,0.48115088,34176.0,34175.0,1.2234033]
[1625297859339,0.48115088,34176.0,34175.0,0.91774405]
[1625297860239,0.48115088,34176.0,34175.0,0.9090586]
[1625297860339,0.48115088,34176.0,34175.0,1.52972944]
[1625297860442,0.48115088,34176.0,34175.0,1.44292944]
[1625297860741,0.48115088,34176.0,34175.0,0.83091948]
[1625297860845,0.67963088,34176.0,34175.0,0.83091948]
[1625297861241,0.67963088,34176.0,34175.0,1.44312794]
[1625297861694,0.67963088,34176.0,34175.0,1.1435525]
[1625297861792,0.73663088,34176.0,34175.0,1.1435525]
[1625297861900,0.73663088,34176.0,34175.0,1.0845525]
[1625297862144,0.79563088,34176.0,34175.0,1.0845525]
[1625297862242,0.79563088,34176.0,34175.0,1.07589162]
[1625297862344,0.79563088,34176.0,34175.0,0.61878455]
[1625297862442,0.79563088,34176.0,34175.0,0.00657609]
[1625297862743,0.79563088,34176.0,34169.0,0.0152397]
[1625297862841,0.79563088,34176.0,34169.0,0.0742397]
[1625297862941,0.79563088,34176.0,34169.0,0.1509558]
[1625297863293,0.79563088,34176.0,34170.0,0.01524043]
[1625297863392,0.79563088,34176.0,34170.0,0.07424043]
[1625297863693,0.79563088,34176.0,34170.0,0.15123262]
[1625297863793,0.79563088,34176.0,34171.0,0.01524027]
[1625297863893,0.79563088,34176.0,34171.0,0.07424027]
[1625297864344,0.79563088,34176.0,34172.0,0.01524022]
[1625297864895,0.79563088,34176.0,34170.0,0.2462758]
[1625297865145,0.79563088,34176.0,34173.0,0.00657742]
[1625297865345,0.48115088,34174.0,34173.0,0.00657742]
[1625297865445,0.59715088,34174.0,34171.0,0.00657763]
[1625297865594,0.59715088,34174.0,34171.0,0.06557763]